[Event "*** Titled Tuesday Blitz"]
[Site "Chess.com"]
[Date "2020.05.26"]
[Round "9"]
[White "kingnb"]
[Black "ChessQueen"]
[Result "1-0"]
[WhiteElo "2509"]
[BlackElo "2615"]
[TimeControl "180+1"]
[EndTime "11:52:30 PDT"]
[Termination "kingnb won by resignation"]

1. e4 {[%clk 0:03:00]} 1... c6 {[%clk 0:03:00.1]} 2. Ne2 {[%clk 0:02:58.8]} 2...
d5 {[%clk 0:02:59.8]} 3. e5 {[%clk 0:02:59.5]} 3... c5 {[%clk 0:02:58.9]} 4. c3
{[%clk 0:02:55.5]} 4... Nc6 {[%clk 0:02:56.9]} 5. d4 {[%clk 0:02:55.3]} 5... e6
{[%clk 0:02:49]} 6. Nd2 {[%clk 0:02:48.7]} 6... Nge7 {[%clk 0:02:46.1]} 7. Nf3
{[%clk 0:02:48.3]} 7... Nf5 {[%clk 0:02:44.8]} 8. g3 {[%clk 0:02:48.7]} 8... h5
{[%clk 0:02:43.2]} 9. h4 {[%clk 0:02:37.8]} 9... Qb6 {[%clk 0:02:35.9]} 10. Bh3
{[%clk 0:02:35]} 10... g6 {[%clk 0:02:34.8]} 11. O-O {[%clk 0:02:31]} 11... a5
{[%clk 0:02:19.1]} 12. Re1 {[%clk 0:02:19.7]} 12... a4 {[%clk 0:02:18.7]} 13. a3
{[%clk 0:02:19.6]} 13... Bd7 {[%clk 0:02:17.1]} 14. Rb1 {[%clk 0:02:13]} 14...
Na5 {[%clk 0:02:12.2]} 15. Bg5 {[%clk 0:02:12.9]} 15... Nb3 {[%clk 0:02:05.3]}
16. Bf6 {[%clk 0:02:10.9]} 16... Rg8 {[%clk 0:02:02]} 17. Nf4 {[%clk 0:02:09.7]}
17... Bh6 {[%clk 0:01:54.2]} 18. Bxf5 {[%clk 0:01:53.9]} 18... Bxf4 {[%clk
0:01:52.8]} 19. Bc2 {[%clk 0:01:47]} 19... Bh6 {[%clk 0:01:45.8]} 20. Bxb3
{[%clk 0:01:46.6]} 20... axb3 {[%clk 0:01:42.5]} 21. dxc5 {[%clk 0:01:46.8]}
21... Qxc5 {[%clk 0:01:42.5]} 22. Qxb3 {[%clk 0:01:46.8]} 22... Bb5 {[%clk
0:01:39.6]} 23. Nd4 {[%clk 0:01:44.1]} 23... Ba6 {[%clk 0:01:39.8]} 24. Qa4+
{[%clk 0:01:37.2]} 24... b5 {[%clk 0:01:23.3]} 25. Qb4 {[%clk 0:01:37.5]} 25...
Bf8 {[%clk 0:01:19.6]} 26. Qxc5 {[%clk 0:01:35.2]} 26... Bxc5 {[%clk 0:01:20.5]}
27. b4 {[%clk 0:01:27.8]} 27... Bxd4 {[%clk 0:01:15.1]} 28. cxd4 {[%clk
0:01:27.5]} 28... Bb7 {[%clk 0:01:15.2]} 29. Rec1 {[%clk 0:01:27.4]} 29... Kd7
{[%clk 0:01:14.8]} 30. Rc5 {[%clk 0:01:23.1]} 30... Bc6 {[%clk 0:01:12.8]} 31.
Rbc1 {[%clk 0:01:22.5]} 31... Rgc8 {[%clk 0:01:12.7]} 32. R1c3 {[%clk
0:01:22.2]} 32... Ra6 {[%clk 0:01:13]} 33. Kf1 {[%clk 0:01:22.3]} 33... Bb7
{[%clk 0:01:04.5]} 34. Rxc8 {[%clk 0:01:04.8]} 34... Bxc8 {[%clk 0:01:03.4]} 35.
Ke2 {[%clk 0:01:05.4]} 35... Rc6 {[%clk 0:00:59.9]} 36. Rc5 {[%clk 0:01:03]}
36... Ra6 {[%clk 0:00:54.5]} 37. Rc3 {[%clk 0:00:49.5]} 37... Bb7 {[%clk
0:00:51.5]} 38. Ke3 {[%clk 0:00:48.8]} 38... Rc6 {[%clk 0:00:42.9]} 39. Rc5
{[%clk 0:00:47.7]} 39... Rxc5 {[%clk 0:00:34.8]} 40. bxc5 {[%clk 0:00:48.5]}
40... Bc6 {[%clk 0:00:27.2]} 41. Kf4 {[%clk 0:00:47.6]} 41... b4 {[%clk
0:00:26.2]} 42. axb4 {[%clk 0:00:48.5]} 42... Bb5 {[%clk 0:00:26.6]} 43. Kg5
{[%clk 0:00:46.2]} 43... Ke8 {[%clk 0:00:23.2]} 44. Kh6 {[%clk 0:00:39.4]} 44...
Kf8 {[%clk 0:00:20.5]} 45. f3 {[%clk 0:00:36.5]} 45... Be2 {[%clk 0:00:18.7]}
46. g4 {[%clk 0:00:36.6]} 46... Bxf3 {[%clk 0:00:15.8]} 47. gxh5 {[%clk
0:00:35]} 47... Bxh5 {[%clk 0:00:14]} 48. b5 {[%clk 0:00:34.2]} 48... Be2 {[%clk
0:00:14]} 49. b6 {[%clk 0:00:34.3]} 49... Ba6 {[%clk 0:00:11.5]} 50. c6 {[%clk
0:00:34.6]} 50... Ke8 {[%clk 0:00:11.9]} 1-0

[Event "*** Titled Tuesday Blitz"]
[Site "Chess.com"]
[Date "2020.05.26"]
[Round "9"]
[White "51616516516"]
[Black "Abund"]
[Result "0-1"]
[WhiteElo "2384"]
[BlackElo "2613"]
[TimeControl "180+1"]
[EndTime "11:52:30 PDT"]
[Termination "Abund won on time"]

1. d4 {[%clk 0:03:00.9]} 1... Nf6 {[%clk 0:02:59.8]} 2. c4 {[%clk 0:03:01.2]}
2... g6 {[%clk 0:03:00]} 3. g3 {[%clk 0:02:59.9]} 3... Bg7 {[%clk 0:02:59.6]} 4.
Bg2 {[%clk 0:03:00.4]} 4... d5 {[%clk 0:02:59.7]} 5. cxd5 {[%clk 0:03:00.1]}
5... Nxd5 {[%clk 0:03:00.6]} 6. Nf3 {[%clk 0:03:00.3]} 6... Nb6 {[%clk
0:03:00.4]} 7. O-O {[%clk 0:02:59.9]} 7... Nc6 {[%clk 0:03:00.8]} 8. Nc3 {[%clk
0:03:00.3]} 8... Nxd4 {[%clk 0:02:59.3]} 9. Nxd4 {[%clk 0:03:00]} 9... Qxd4
{[%clk 0:02:56.7]} 10. a4 {[%clk 0:02:58.1]} 10... O-O {[%clk 0:02:19.2]} 11. a5
{[%clk 0:02:34]} 11... Nc4 {[%clk 0:02:08.1]} 12. a6 {[%clk 0:01:30.7]} 12... c6
{[%clk 0:01:38.5]} 13. Qb3 {[%clk 0:01:15.7]} 13... bxa6 {[%clk 0:01:01]} 14.
Rd1 {[%clk 0:01:04.5]} 14... Qc5 {[%clk 0:01:00]} 15. Na4 {[%clk 0:00:47.7]}
15... Qb5 {[%clk 0:00:59.9]} 16. Qxb5 {[%clk 0:00:41.6]} 16... axb5 {[%clk
0:00:59.8]} 17. Bxc6 {[%clk 0:00:41.8]} 17... Rb8 {[%clk 0:00:56.7]} 18. Nc3
{[%clk 0:00:32.2]} 18... a6 {[%clk 0:00:36.7]} 19. Bf4 {[%clk 0:00:18.1]} 19...
e5 {[%clk 0:00:36.4]} 20. Bc1 {[%clk 0:00:18.4]} 20... b4 {[%clk 0:00:18]} 21.
Nd5 {[%clk 0:00:14.8]} 21... Kh8 {[%clk 0:00:16.7]} 22. b3 {[%clk 0:00:12.5]}
22... Nb6 {[%clk 0:00:15.1]} 23. Be3 {[%clk 0:00:07.7]} 23... Nxd5 {[%clk
0:00:14.2]} 24. Bxd5 {[%clk 0:00:08.6]} 24... f5 {[%clk 0:00:07.8]} 25. Bc5
{[%clk 0:00:05.6]} 25... Rd8 {[%clk 0:00:07.3]} 26. Kg2 {[%clk 0:00:03]} 26...
Rxd5 {[%clk 0:00:07]} 27. Rxd5 {[%clk 0:00:02.7]} 27... Bb7 {[%clk 0:00:07.4]}
28. Rd1 {[%clk 0:00:01.7]} 28... Rd8 {[%clk 0:00:07.2]} 29. e4 {[%clk
0:00:02.2]} 29... Bxd5 {[%clk 0:00:05.9]} 30. exd5 {[%clk 0:00:02.4]} 30... Rb8
{[%clk 0:00:04.3]} 31. d6 {[%clk 0:00:02.1]} 31... Bf6 {[%clk 0:00:03]} 32. d7
{[%clk 0:00:03]} 32... Bd8 {[%clk 0:00:03.5]} 33. Bd6 {[%clk 0:00:02.7]} 33...
Rb5 {[%clk 0:00:03.9]} 34. f3 {[%clk 0:00:02.4]} 34... Kg7 {[%clk 0:00:04.4]}
35. Re1 {[%clk 0:00:02]} 35... Kf6 {[%clk 0:00:04.1]} 36. Rd1 {[%clk 0:00:02.4]}
36... Ke6 {[%clk 0:00:04.5]} 37. Bf8 {[%clk 0:00:01.2]} 37... a5 {[%clk
0:00:04.5]} 38. Bg7 {[%clk 0:00:01.5]} 38... Rd5 {[%clk 0:00:04.4]} 39. Bf8
{[%clk 0:00:01.7]} 39... Rxd1 {[%clk 0:00:04.3]} 0-1

[Event "*** Titled Tuesday Blitz"]
[Site "Chess.com"]
[Date "2020.05.26"]
[Round "9"]
[White "Chessmatus"]
[Black "Mostii"]
[Result "1-0"]
[WhiteElo "2498"]
[BlackElo "2353"]
[TimeControl "180+1"]
[EndTime "11:52:31 PDT"]
[Termination "Chessmatus won by resignation"]

1. e4 {[%clk 0:03:00.9]} 1... e6 {[%clk 0:03:00]} 2. d4 {[%clk 0:03:00.4]} 2...
d5 {[%clk 0:03:00.4]} 3. Nc3 {[%clk 0:03:00.6]} 3... dxe4 {[%clk 0:03:00.8]} 4.
Nxe4 {[%clk 0:03:00.5]} 4... Nd7 {[%clk 0:03:01.7]} 5. Nf3 {[%clk 0:02:59.4]}
5... Ngf6 {[%clk 0:03:02]} 6. Nxf6+ {[%clk 0:02:59.6]} 6... Nxf6 {[%clk
0:03:02.1]} 7. Bd3 {[%clk 0:02:59.8]} 7... c5 {[%clk 0:03:01.7]} 8. Bg5 {[%clk
0:02:47.1]} 8... cxd4 {[%clk 0:02:59.3]} 9. Nxd4 {[%clk 0:02:35.6]} 9... Bc5
{[%clk 0:02:47.7]} 10. Bb5+ {[%clk 0:02:20.4]} 10... Bd7 {[%clk 0:02:44.7]} 11.
Bxf6 {[%clk 0:01:41.7]} 11... gxf6 {[%clk 0:02:31.9]} 12. Nxe6 {[%clk
0:01:41.8]} 12... Qa5+ {[%clk 0:01:56.1]} 13. c3 {[%clk 0:01:40.9]} 13... Bxb5
{[%clk 0:01:45.5]} 14. Nxc5 {[%clk 0:01:39.5]} 14... O-O {[%clk 0:01:37.1]} 15.
Qg4+ {[%clk 0:01:15]} 15... Kh8 {[%clk 0:01:36.2]} 16. O-O-O {[%clk 0:01:13.8]}
16... Qxa2 {[%clk 0:01:31.7]} 17. Qf5 {[%clk 0:01:09.8]} 17... Qa1+ {[%clk
0:01:22.1]} 18. Kc2 {[%clk 0:01:08.4]} 18... Ba4+ {[%clk 0:01:22.3]} 19. Nxa4
{[%clk 0:01:06.9]} 19... Qxa4+ {[%clk 0:01:23.2]} 20. Kb1 {[%clk 0:01:07.2]}
20... Qc6 {[%clk 0:01:08.7]} 21. Rd4 {[%clk 0:01:03.2]} 21... Rg8 {[%clk
0:01:05.7]} 22. Rh4 {[%clk 0:00:40.9]} 22... Rg6 {[%clk 0:01:04.9]} 23. f3
{[%clk 0:00:36.3]} 23... Kg7 {[%clk 0:01:03.2]} 24. Rd1 {[%clk 0:00:32.4]} 24...
Re8 {[%clk 0:01:02.4]} 25. Qh5 {[%clk 0:00:27.9]} 25... h6 {[%clk 0:01:02.1]}
26. Rhd4 {[%clk 0:00:21]} 26... Re2 {[%clk 0:01:01.2]} 27. R1d2 {[%clk
0:00:20.1]} 27... Re1+ {[%clk 0:01:00.1]} 28. Kc2 {[%clk 0:00:19.2]} 28... a5
{[%clk 0:00:53]} 29. Qxa5 {[%clk 0:00:16.2]} 29... Qe6 {[%clk 0:00:53.1]} 30.
Qc5 {[%clk 0:00:14.8]} 30... Rg5 {[%clk 0:00:52.7]} 31. Rd5 {[%clk 0:00:14]}
31... Rg6 {[%clk 0:00:47.2]} 32. Rd8 {[%clk 0:00:12.9]} 32... Kh7 {[%clk
0:00:33.9]} 33. g4 {[%clk 0:00:13.1]} 33... Re2 {[%clk 0:00:30.4]} 34. Qf8
{[%clk 0:00:12.1]} 34... Rg7 {[%clk 0:00:30.2]} 35. Qh8+ {[%clk 0:00:11.6]}
35... Kg6 {[%clk 0:00:30.3]} 36. f4 {[%clk 0:00:09.3]} 36... Qe4+ {[%clk
0:00:28.6]} 37. Kb3 {[%clk 0:00:08.1]} 37... Qe6+ {[%clk 0:00:19.3]} 38. R2d5
{[%clk 0:00:08.3]} 38... Rxb2+ {[%clk 0:00:14.1]} 39. Kxb2 {[%clk 0:00:08.2]}
39... Qe2+ {[%clk 0:00:14.7]} 40. Kb3 {[%clk 0:00:07.5]} 40... f5 {[%clk
0:00:13.7]} 41. gxf5+ {[%clk 0:00:07.5]} 41... Kh5 {[%clk 0:00:14.1]} 42. R8d6
{[%clk 0:00:08.1]} 42... Rg6 {[%clk 0:00:04.5]} 43. fxg6+ {[%clk 0:00:07.8]}
43... Kg4 {[%clk 0:00:05]} 44. Qd4 {[%clk 0:00:07.5]} 44... Kf3 {[%clk
0:00:05.9]} 45. Qd3+ {[%clk 0:00:07.8]} 1-0

[Event "*** Titled Tuesday Blitz"]
[Site "Chess.com"]
[Date "2020.05.26"]
[Round "9"]
[White "MusicCityMaster"]
[Black "PlayChessSimple"]
[Result "0-1"]
[WhiteElo "2366"]
[BlackElo "2507"]
[TimeControl "180+1"]
[EndTime "11:52:37 PDT"]
[Termination "PlayChessSimple won by resignation"]

1. e4 {[%clk 0:03:00.9]} 1... e6 {[%clk 0:02:59.8]} 2. d4 {[%clk 0:02:59.9]}
2... d5 {[%clk 0:03:00.3]} 3. Nc3 {[%clk 0:03:00.5]} 3... Nf6 {[%clk 0:02:59.9]}
4. e5 {[%clk 0:02:58.9]} 4... Nfd7 {[%clk 0:02:59.5]} 5. Nce2 {[%clk 0:02:59.6]}
5... c5 {[%clk 0:02:59.4]} 6. c3 {[%clk 0:02:55]} 6... Nc6 {[%clk 0:02:59.5]} 7.
Nf3 {[%clk 0:02:54.3]} 7... Qb6 {[%clk 0:02:56.8]} 8. a3 {[%clk 0:02:53.8]} 8...
a5 {[%clk 0:02:54.1]} 9. Nf4 {[%clk 0:02:51.9]} 9... a4 {[%clk 0:02:44.4]} 10.
h4 {[%clk 0:02:39.6]} 10... Qa5 {[%clk 0:02:32.1]} 11. Bd2 {[%clk 0:02:33.1]}
11... Qa7 {[%clk 0:02:25.2]} 12. Be3 {[%clk 0:02:23.4]} 12... cxd4 {[%clk
0:02:12]} 13. cxd4 {[%clk 0:02:22.5]} 13... Nb6 {[%clk 0:02:12]} 14. Rc1 {[%clk
0:02:16.2]} 14... Bd7 {[%clk 0:02:10.1]} 15. Bd3 {[%clk 0:02:07.4]} 15... Na5
{[%clk 0:02:07.9]} 16. Rc2 {[%clk 0:01:46.5]} 16... Nbc4 {[%clk 0:02:06.8]} 17.
Ng5 {[%clk 0:01:37.9]} 17... Nb3 {[%clk 0:01:46.4]} 18. Bxc4 {[%clk 0:01:32.1]}
18... dxc4 {[%clk 0:01:42.5]} 19. d5 {[%clk 0:01:30.7]} 19... Qa5+ {[%clk
0:01:38.2]} 20. Kf1 {[%clk 0:01:28.2]} 20... exd5 {[%clk 0:01:24.4]} 21. Nxd5
{[%clk 0:01:19.8]} 21... Bc6 {[%clk 0:01:24.2]} 22. Nb6 {[%clk 0:00:46.2]} 22...
Rd8 {[%clk 0:01:15.5]} 23. Qh5 {[%clk 0:00:45.1]} 23... g6 {[%clk 0:01:09.5]}
24. Qg4 {[%clk 0:00:43.7]} 24... Qxe5 {[%clk 0:00:47.5]} 25. Qxc4 {[%clk
0:00:39.5]} 25... Qf5 {[%clk 0:00:36]} 26. Kg1 {[%clk 0:00:27.4]} 26... Rd1+
{[%clk 0:00:34.1]} 27. Kh2 {[%clk 0:00:27.5]} 27... Bd6+ {[%clk 0:00:33.9]} 28.
f4 {[%clk 0:00:25.1]} 28... Rxh1+ {[%clk 0:00:31]} 29. Kxh1 {[%clk 0:00:26]}
29... O-O {[%clk 0:00:28.9]} 30. Rf2 {[%clk 0:00:19.1]} 30... Re8 {[%clk
0:00:26.9]} 31. Qc3 {[%clk 0:00:17.2]} 31... h6 {[%clk 0:00:22.2]} 32. Nf3
{[%clk 0:00:16.4]} 32... Bxf4 {[%clk 0:00:16.4]} 33. Bxf4 {[%clk 0:00:16.6]}
33... Qxf4 {[%clk 0:00:16.1]} 34. Nc4 {[%clk 0:00:17]} 34... Bxf3 {[%clk
0:00:12.3]} 35. Qxf3 {[%clk 0:00:15.4]} 35... Qxh4+ {[%clk 0:00:11]} 36. Kg1
{[%clk 0:00:15.5]} 36... Qxc4 {[%clk 0:00:09.7]} 37. g3 {[%clk 0:00:13]} 37...
Qc1+ {[%clk 0:00:08.4]} 38. Kg2 {[%clk 0:00:13.4]} 38... Qc6 {[%clk 0:00:08]}
39. Qxc6 {[%clk 0:00:13]} 39... bxc6 {[%clk 0:00:08]} 40. Rf4 {[%clk 0:00:13.6]}
40... Ra8 {[%clk 0:00:07]} 41. Rc4 {[%clk 0:00:11.9]} 41... Ra6 {[%clk
0:00:06.8]} 42. Kf3 {[%clk 0:00:12.2]} 42... Nd2+ {[%clk 0:00:05.3]} 43. Ke3
{[%clk 0:00:13.1]} 43... Nxc4+ {[%clk 0:00:05.3]} 44. Kd4 {[%clk 0:00:13.3]}
44... Nxb2 {[%clk 0:00:05.3]} 45. Kc5 {[%clk 0:00:14.2]} 45... Nd3+ {[%clk
0:00:04.6]} 46. Kc4 {[%clk 0:00:14]} 46... Nf2 {[%clk 0:00:04.3]} 47. Kc5 {[%clk
0:00:14.9]} 47... Ne4+ {[%clk 0:00:03.3]} 48. Kc4 {[%clk 0:00:15.8]} 48... Nxg3
{[%clk 0:00:03.5]} 49. Kc5 {[%clk 0:00:16]} 49... Nf5 {[%clk 0:00:04.1]} 50. Kb4
{[%clk 0:00:16.2]} 50... h5 {[%clk 0:00:04.9]} 51. Kc4 {[%clk 0:00:16.8]} 51...
h4 {[%clk 0:00:05.5]} 0-1

[Event "*** Titled Tuesday Blitz"]
[Site "Chess.com"]
[Date "2020.05.26"]
[Round "9"]
[White "MNyuyu"]
[Black "antoszu"]
[Result "0-1"]
[WhiteElo "2309"]
[BlackElo "2498"]
[TimeControl "180+1"]
[EndTime "11:52:37 PDT"]
[Termination "antoszu won by resignation"]

1. d4 {[%clk 0:03:00.9]} 1... Nf6 {[%clk 0:02:59.4]} 2. Nf3 {[%clk 0:03:00.8]}
2... e6 {[%clk 0:02:59.4]} 3. Bf4 {[%clk 0:03:00.4]} 3... c5 {[%clk 0:02:59.3]}
4. e3 {[%clk 0:03:00.4]} 4... d5 {[%clk 0:02:59.2]} 5. c3 {[%clk 0:02:59.8]}
5... Nc6 {[%clk 0:02:59.4]} 6. Nbd2 {[%clk 0:02:59.2]} 6... cxd4 {[%clk
0:02:59.9]} 7. exd4 {[%clk 0:02:58.9]} 7... Nh5 {[%clk 0:03:00]} 8. Bg3 {[%clk
0:02:53.6]} 8... g6 {[%clk 0:02:57.4]} 9. Bd3 {[%clk 0:02:52.7]} 9... Be7 {[%clk
0:02:54.8]} 10. Qe2 {[%clk 0:02:52.3]} 10... O-O {[%clk 0:02:54.6]} 11. O-O-O
{[%clk 0:02:48]} 11... Bd7 {[%clk 0:02:44]} 12. Ne5 {[%clk 0:02:47.2]} 12...
Nxe5 {[%clk 0:02:33.7]} 13. Bxe5 {[%clk 0:02:46.2]} 13... f6 {[%clk 0:02:22.8]}
14. g4 {[%clk 0:02:44.3]} 14... Ng7 {[%clk 0:02:14.1]} 15. Bg3 {[%clk 0:02:42]}
15... b5 {[%clk 0:02:06.9]} 16. h4 {[%clk 0:02:37.1]} 16... b4 {[%clk
0:02:00.6]} 17. c4 {[%clk 0:02:35.8]} 17... dxc4 {[%clk 0:01:58]} 18. Bxc4
{[%clk 0:02:35.4]} 18... Rc8 {[%clk 0:01:58.1]} 19. Kb1 {[%clk 0:02:34.3]} 19...
Kh8 {[%clk 0:01:34.7]} 20. h5 {[%clk 0:02:28.8]} 20... gxh5 {[%clk 0:01:34.3]}
21. gxh5 {[%clk 0:02:25.1]} 21... Qb6 {[%clk 0:01:34.5]} 22. h6 {[%clk
0:02:22.2]} 22... Nf5 {[%clk 0:01:34.4]} 23. Bd3 {[%clk 0:02:13.2]} 23... Nxd4
{[%clk 0:01:23.9]} 24. Qe4 {[%clk 0:02:11.3]} 24... Nf5 {[%clk 0:01:22.4]} 25.
Rhg1 {[%clk 0:02:06.4]} 25... Qd4 {[%clk 0:01:15.1]} 26. Qe2 {[%clk 0:02:03.8]}
26... e5 {[%clk 0:00:53.7]} 27. Nf3 {[%clk 0:01:57.8]} 27... Qb6 {[%clk
0:00:53]} 28. Nxe5 {[%clk 0:01:46.7]} 28... fxe5 {[%clk 0:00:44.5]} 29. Bxe5+
{[%clk 0:01:43]} 29... Bf6 {[%clk 0:00:43.7]} 30. Ka1 {[%clk 0:01:42.4]} 30...
Bxe5 {[%clk 0:00:41.6]} 31. Qxe5+ {[%clk 0:01:41.9]} 31... Qf6 {[%clk
0:00:40.4]} 32. Qd5 {[%clk 0:01:35.4]} 32... Be6 {[%clk 0:00:38.5]} 33. Qa5
{[%clk 0:01:34.9]} 33... b3 {[%clk 0:00:30.2]} 34. a3 {[%clk 0:01:24.2]} 34...
Rcd8 {[%clk 0:00:25.1]} 35. Qxa7 {[%clk 0:01:19.8]} 35... Rd7 {[%clk 0:00:22]}
36. Qc5 {[%clk 0:01:16.4]} 36... Rfd8 {[%clk 0:00:21.2]} 37. Qb5 {[%clk
0:00:45.8]} 37... Nd4 {[%clk 0:00:20.4]} 38. Qa6 {[%clk 0:00:42.4]} 38... Rd6
{[%clk 0:00:11.9]} 39. Qa7 {[%clk 0:00:38.5]} 39... R6d7 {[%clk 0:00:07.1]} 40.
Qa6 {[%clk 0:00:36.7]} 40... Qxh6 {[%clk 0:00:06.2]} 41. Rh1 {[%clk 0:00:34.9]}
41... Nc2+ {[%clk 0:00:05.8]} 42. Kb1 {[%clk 0:00:25.5]} 42... Qf6 {[%clk
0:00:05.4]} 43. Qb6 {[%clk 0:00:15.3]} 43... Bg8 {[%clk 0:00:04.1]} 44. Bxc2
{[%clk 0:00:12.3]} 44... bxc2+ {[%clk 0:00:03.9]} 45. Kxc2 {[%clk 0:00:11.6]}
45... Qxb6 {[%clk 0:00:04.7]} 46. Kb1 {[%clk 0:00:11.2]} 46... Rxd1+ {[%clk
0:00:04.3]} 0-1

[Event "*** Titled Tuesday Blitz"]
[Site "Chess.com"]
[Date "2020.05.26"]
[Round "9"]
[White "Julianos82"]
[Black "latixxa"]
[Result "1/2-1/2"]
[WhiteElo "2304"]
[BlackElo "2134"]
[TimeControl "180+1"]
[EndTime "11:52:37 PDT"]
[Termination "Game drawn by repetition"]

1. d4 {[%clk 0:03:00.9]} 1... Nf6 {[%clk 0:02:59.1]} 2. Nf3 {[%clk 0:03:00.8]}
2... d5 {[%clk 0:02:58.5]} 3. Bf4 {[%clk 0:03:00.1]} 3... e6 {[%clk 0:02:57.6]}
4. e3 {[%clk 0:02:59.6]} 4... Bd6 {[%clk 0:02:57.3]} 5. Bg3 {[%clk 0:03:00]}
5... c5 {[%clk 0:02:55.8]} 6. c3 {[%clk 0:02:59.7]} 6... Nc6 {[%clk 0:02:55.2]}
7. Nbd2 {[%clk 0:02:59.4]} 7... O-O {[%clk 0:02:54.9]} 8. Bd3 {[%clk 0:02:58.9]}
8... b6 {[%clk 0:02:54.1]} 9. Ne5 {[%clk 0:02:58.1]} 9... Bb7 {[%clk 0:02:54]}
10. f4 {[%clk 0:02:54.6]} 10... Ne7 {[%clk 0:02:53.8]} 11. Qf3 {[%clk
0:02:50.5]} 11... Nf5 {[%clk 0:02:51.8]} 12. Bf2 {[%clk 0:02:45]} 12... Be7
{[%clk 0:02:50.6]} 13. O-O {[%clk 0:02:16.8]} 13... Nd6 {[%clk 0:02:49.7]} 14.
f5 {[%clk 0:02:09.6]} 14... Nfe4 {[%clk 0:02:44.9]} 15. Rad1 {[%clk 0:01:56.8]}
15... exf5 {[%clk 0:02:41.4]} 16. Qh3 {[%clk 0:01:46.3]} 16... g6 {[%clk
0:02:32.1]} 17. Ndf3 {[%clk 0:01:21]} 17... f6 {[%clk 0:02:26.1]} 18. Nxg6
{[%clk 0:01:08.3]} 18... hxg6 {[%clk 0:02:27]} 19. Qh6 {[%clk 0:01:08]} 19...
Rf7 {[%clk 0:02:00]} 20. Nh4 {[%clk 0:01:03.3]} 20... g5 {[%clk 0:01:47.1]} 21.
Bxe4 {[%clk 0:00:49.4]} 21... fxe4 {[%clk 0:01:18.3]} 22. Bg3 {[%clk 0:00:37.4]}
22... gxh4 {[%clk 0:01:13]} 23. Rf4 {[%clk 0:00:33.6]} 23... Qf8 {[%clk
0:00:56.5]} 24. Qxh4 {[%clk 0:00:29.5]} 24... f5 {[%clk 0:00:49.8]} 25. Qh5
{[%clk 0:00:24.4]} 25... Rh7 {[%clk 0:00:47]} 26. Qg6+ {[%clk 0:00:24]} 26...
Qg7 {[%clk 0:00:43.9]} 27. Qe6+ {[%clk 0:00:24.2]} 27... Qf7 {[%clk 0:00:43.1]}
28. Qd7 {[%clk 0:00:24.4]} 28... Rd8 {[%clk 0:00:41]} 29. Qa4 {[%clk 0:00:24.3]}
29... a6 {[%clk 0:00:37]} 30. Rdf1 {[%clk 0:00:23.9]} 30... Qg6 {[%clk
0:00:31.2]} 31. dxc5 {[%clk 0:00:22.9]} 31... bxc5 {[%clk 0:00:30.1]} 32. Qb3
{[%clk 0:00:22.3]} 32... Bg5 {[%clk 0:00:27.3]} 33. Kh1 {[%clk 0:00:17.3]} 33...
Bxf4 {[%clk 0:00:25.5]} 34. Bxf4 {[%clk 0:00:18.2]} 34... Rg7 {[%clk 0:00:14.5]}
35. g3 {[%clk 0:00:16.9]} 35... Qg4 {[%clk 0:00:13.8]} 36. Qb6 {[%clk
0:00:15.5]} 36... Rf8 {[%clk 0:00:08.9]} 37. Bxd6 {[%clk 0:00:14.1]} 37... Rh7
{[%clk 0:00:08.8]} 38. Be5 {[%clk 0:00:10.2]} 38... Qh5 {[%clk 0:00:05.6]} 39.
Qe6+ {[%clk 0:00:08.1]} 39... Rff7 {[%clk 0:00:05]} 40. Qe8+ {[%clk 0:00:07.1]}
40... Rf8 {[%clk 0:00:05.4]} 41. Qe6+ {[%clk 0:00:07]} 41... Qf7 {[%clk
0:00:05.3]} 42. Qd6 {[%clk 0:00:05.6]} 42... Qh5 {[%clk 0:00:02.3]} 43. Qe6+
{[%clk 0:00:05.4]} 1/2-1/2